Cogmind - Beta 11 @@@ ROGUE MODE // 2022.03.24 @ 16:16:20 Player: Gobbopathe Result: Destroyed by EMP Trap Performance ------------- Evolutions (0) 0 Regions Visited (2) 400 Robots Destroyed (19) 95 Value Destroyed (278) 278 Prototype IDs (4) 80 Alien Tech Used (0) 0 Bonus (0) 0 TOTAL SCORE: 853 Bonus ------- None Cogmind --------- Core Integrity 0/250 Matter 300/300 Energy 248/250 System Corruption 0% Temperature Cool (0) Movement Rolling (80) Location -10/Mines Parts ------- > --- POWER (1) -------- Ion Engine > --- PROPULSION (2) --- Wheel Wheel > --- UTILITY (2) ------ Small Storage Unit Propulsion Shielding > --- WEAPON (2) ------- EM Pulse Gun Medium Laser > --- INVENTORY (8) ---- Heat Sink High-capacity Battery (250) High-capacity Matter Pod (200) Improved Terrain Scanner Small Laser Beam Cannon Light Cannon Mining Claw Peak State ------------ > --- POWER ------------ Ion Engine > --- PROPULSION ------- Wheel Compact Wheel > --- UTILITY ---------- Small Storage Unit Propulsion Shielding > --- WEAPON ----------- Medium Laser Small Laser > --- INVENTORY -------- Wheel High-capacity Matter Pod Improved Terrain Scanner EM Pulse Gun Small Laser Particle Gun Beam Cannon [Rating: 8] Favorites ----------- Power Ion Engine Engine Ion Engine Propulsion Wheel Wheel Wheel Utility Small Storage Unit Storage Small Storage Unit Protection Propulsion Shielding Weapon Medium Laser Energy Gun Medium Laser Slashing Weapon Mining Claw Build | -11 -10 -10 ------- Run | Scr Mat Min Slots Evolved . | . . . Power . | . . . Propulsion . | . . . Utility . | . . . Weapon . | . . . Parts Attached 18 | 7 6 5 Power 5 | 1 3 1 Engine 5 | 1 3 1 Core . | . . . Reactor . | . . . Propulsion 5 | 2 2 1 Treads . | . . . Leg . | . . . Wheel 5 | 2 2 1 Hover . | . . . Flight . | . . . Utility 2 | 1 1 . Device . | . . . Storage 1 | 1 . . Processor . | . . . Hackware . | . . . Protection 1 | . 1 . Artifact . | . . . Weapon 6 | 3 . 3 Energy Gun 5 | 3 . 2 Energy Cannon . | . . . Ballistic Gun . | . . . Ballistic Cannon . | . . . Launcher . | . . . Special Weapon . | . . . Impact Weapon . | . . . Slashing Weapon 1 | . . 1 Piercing Weapon . | . . . Special Melee Weapon . | . . . Unidentified Prototypes . | . . . Parts Lost 4 | . 2 2 Power 2 | . 1 1 Propulsion 1 | . 1 . Utility . | . . . Weapon 1 | . . 1 Highest Loss Streak 2 | . 1 2 To Critical Strikes . | . . . Average Slot Usage (%) 90 | . 90 91 Engine 12 | . 14 6 Wheel 27 | . 27 28 Storage 14 | . 14 14 Protection 7 | . 5 14 Energy Gun 27 | . 28 25 Naked Turns . | . . . Heaviest Build 15 | 13 14 15 Greatest Support 26 | 26 26 20 Greatest Overweight (x) . | . . . Average Overweight (x) . | . . . Largest Inventory Capacity 8 | 8 8 8 Average Capacity 7 | 7 8 8 Most Carried 8 | 5 8 8 Average Carried 6 | 1 7 7 Final Capacity 8 | 8 8 8 Final Carried 8 | 5 8 8 Class Distribution -------------------- 100% | Mutant Dominant Class ---------------- Mutant | -10/Materials Mutant | -10/Mines Resources | -11 -10 -10 ----------- Run | Scr Mat Min Matter Collected 560 | 270 194 96 Remotely . | . . . Salvage Created 537 | 114 290 133 Parts 32 | 7 19 6 Haulers Intercepted 1 | . 1 . Recyclers Shooed . | . . . Parts Field Recycled . | . . . Retrieved Matter . | . . . Parts Self-Destructed . | . . . Prevented . | . . . Kills | -11 -10 -10 ------- Run | Scr Mat Min Combat Hostiles Destroyed 10 | . 8 2 Guns 8 | . 6 2 AOE 2 | . 2 . Classes Destroyed 8 | 2 6 . Worker 3 | . 1 2 Builder 1 | . 1 . Tunneler 2 | 2 . . Hauler 1 | . 1 . Recycler 1 | 1 . . Watcher 1 | . 1 . Swarmer 6 | . 6 . Grunt 4 | . 2 2 Best Kill Streak 5 | 2 5 2 Combat Bots Only 3 | . 3 2 Max Kills in Single Turn 4 | 1 4 1 Gunslinging . | . . . Exploded 2 | . 2 . Melee . | . . . Uniques/NPCs Destroyed . | . . . Combat | -11 -10 -10 -------- Run | Scr Mat Min Damage Taken 892 | . 564 328 Core 270 | . 180 90 Absorbed by Shields . | . . . Redirected to Shielding 32 | . 4 28 Core Remaining (%) 100 | 100 . . Volleys Fired 55 | 8 27 20 Largest 2 | 2 2 2 Hottest 90 | 90 90 90 Shots Fired 99 | 16 54 29 Gun 99 | 16 54 29 Cannon . | . . . Launcher . | . . . Special . | . . . Kinetic . | . . . Thermal 95 | 16 54 25 Explosive . | . . . Electromagnetic 4 | . . 4 Robot Hit Streak 20 | 4 10 20 Robot Miss Streak 2 | 1 2 1 Penetration Max . | . . . Secondary Targets 1 | . 1 . Max Gunslinging Chain 1 | . 1 . Shots Hit Robots 69 | 10 30 29 Core Hits 24 | 4 13 7 Critical Kills . | . . . Critical Parts Destroyed . | . . . Critical Strikes 2 | 1 1 . Burn 2 | 1 1 . Melee Attacks 6 | . . 6 Impact . | . . . Slashing 6 | . . 6 Piercing . | . . . Sneak Attacks . | . . . Combat Hostiles . | . . . Follow-up Attacks . | . . . Damage Inflicted 1161 | 127 631 403 Guns 790 | 127 354 309 Cannons . | . . . Explosions 277 | . 277 . Melee 94 | . . 94 Ramming . | . . . Kinetic . | . . . Thermal 1011 | 127 631 253 Explosive . | . . . Electromagnetic 56 | . . 56 Impact . | . . . Slashing 94 | . . 94 Piercing . | . . . Highest Corruption . | . . . Average Corruption . | . . . Corruption Purged . | . . . Corruption Blocked . | . . . Overload Shots . | . . . Overflow Damage 157 | . 157 . Projectiles . | . . . Explosions 157 | . 157 . Melee . | . . . Knockbacks . | . . . Impact . | . . . Kinetic . | . . . Secondary . | . . . Self-Inflicted Damage 36 | . 36 . Shots 1 | . 1 . Rammed . | . . . Targets Rammed . | . . . Kicked . | . . . Crushed . | . . . Highest Temperature 413 | 180 413 129 Average Temperature 110 | 79 140 67 Received Heat Transfer 393 | . 216 177 Effects 2 | . 2 . Shutdowns 2 | . 2 . Siege Activations . | . . . Robots Corrupted . | . . . Combat Hostiles . | . . . Parts Fried . | . . . Impact Corruptions . | . . . Robots Melted . | . . . Combat Hostiles . | . . . Parts Melted 4 | 1 2 1 Heat Transferred 2280 | 409 1142 729 Parts Sabotaged . | . . . Parts Stolen . | . . . Parts Stripped . | . . . Power Chain Reactions . | . . . Missiles Intercepted . | . . . Alert | -11 -10 -10 ------- Run | Scr Mat Min Peak Influence 337 | 15 337 108 Initial 53 | . 9 53 Average 107 | 6 136 75 Maximum Alert Level 1 | . 1 . Low Security (%) 87 | 100 80 100 Level 1 12 | . 19 . Level 2 . | . . . Level 3 . | . . . Level 4 . | . . . Level 5 . | . . . High Security . | . . . Max Security . | . . . Squads Dispatched . | . . . Investigation . | . . . Extermination . | . . . Reinforcement . | . . . Assault . | . . . Garrison . | . . . Intercept . | . . . Searches Triggered . | . . . Construction Impeded . | . . . Haulers Reinforced . | . . . Active Scanning Responses . | . . . Cargo Convoy Interrupts . | . . . Stealth | -11 -10 -10 --------- Run | Scr Mat Min Distress Signals . | . . . Communications Jammed . | . . . Distress Signals . | . . . Times Spotted 12 | . 9 3 Peak Tracking Total 5 | . 5 2 Tactical Retreats 2 | . 1 1 Traps | -11 -10 -10 ------- Run | Scr Mat Min Traps Triggered 1 | . . 1 Indirectly . | . . . Trap Hack Attempts . | . . . Triggered . | . . . Disarmed . | . . . Reprogrammed . | . . . Reused . | . . . Traps Extracted . | . . . Installed . | . . . Triggered . | . . . Machines | -11 -10 -10 ---------- Run | Scr Mat Min Machines Disabled 1 | . 1 . Max in Single Turn 1 | . 1 . Machines Sabotaged . | . . . Garrisons Compromised . | . . . Overloaded Fab Kills . | . . . Hacking | -11 -10 -10 --------- Run | Scr Mat Min Machines Accessed 4 | . 3 1 Terminals 3 | . 3 . Fabricators . | . . . Repair Stations . | . . . Recycling Units . | . . . Scanalyzers . | . . . Garrison Access . | . . . Total Hacks 10 | . 9 1 Successful 8 | . 7 1 Failed 2 | . 2 . Catastrophic . | . . . Database Lockouts . | . . . Manual 6 | . 6 . Terminals 9 | . 9 . Fabricators . | . . . Repair Stations . | . . . Recycling Units . | . . . Scanalyzers . | . . . Garrison Access . | . . . Terminal Hacks 4 | . 3 1 Prototype ID Bank 2 | . 2 . Open Door 1 | . . 1 Terminal Index 1 | . 1 . Fabricator Hacks . | . . . Repair Station Hacks . | . . . Recycling Unit Hacks . | . . . Scanalyzer . | . . . Garrison Access Hacks . | . . . Unauthorized Hacks 4 | . 4 . Terminals 4 | . 4 . Track 1 | . 1 . Botnet 2 | . 2 . Operators 1 | . 1 . Fabricators . | . . . Repair Stations . | . . . Recycling Units . | . . . Scanalyzers . | . . . Garrison Access . | . . . Data Cores Recovered . | . . . Used . | . . . Hacking Detections 3 | . 3 . Full Trace Events . | . . . Feedback Events . | . . . Feedback Blocked . | . . . Robot Schematics Acquired . | . . . Robots Built . | . . . Authchips . | . . . Time . | . . . Total Robot Build Rating . | . . . Part Schematics Acquired . | . . . Parts Built . | . . . Authchips . | . . . Time . | . . . Total Part Build Rating . | . . . Parts Repaired . | . . . Time . | . . . Parts Recycled . | . . . Recycled Matter . | . . . Retrieved Matter . | . . . Retrieved Components . | . . . Parts Scanalyzed . | . . . Part Schematics Acquired . | . . . Parts Damaged . | . . . Bothacking | -11 -10 -10 ------------ Run | Scr Mat Min Used RIF Installer . | . . . Robots Hacked . | . . . Non-combat . | . . . Combat . | . . . Robot Hacks Applied . | . . . Relay Couplers Released . | . . . Fabnet Peak Effective % . | . . . Robots Rewired . | . . . Allies Hacked . | . . . Hacks Repelled . | . . . Allies | -11 -10 -10 -------- Run | Scr Mat Min Total Allies . | . . . Largest Group . | . . . Highest-Rated Group . | . . . Highest-Rated Ally . | . . . Total Orders . | . . . Ally Attacks . | . . . Total Damage . | . . . Kills . | . . . Allies Corrupted . | . . . Allies Melted . | . . . Intel | -11 -10 -10 ------- Run | Scr Mat Min Robot Analysis Total . | . . . Derelict Logs Recovered . | . . . Drone Launches . | . . . Drone Recoveries . | . . . Exploration | -11 -10 -10 ------------- Run | Scr Mat Min Turns Passed 621 | 76 416 129 Spaces Moved 436 | 42 326 68 Core 2 | 2 . . Treads . | . . . Legs . | . . . Wheels 434 | 40 326 68 Hover . | . . . Flight . | . . . Fastest Speed 50 | 50 80 80 Average Speed 85 | 87 86 80 Slowest Speed 90 | 90 90 80 Overloaded Moves . | . . . Propulsion Burnouts . | . . . Robots Hopped . | . . . Cave-ins Triggered . | . . . Exploration Rate (%) 24 | 4 48 22 Regions Visited 2 Branch Regions 1 Pre-discovered Areas . | . . . Known Exits Taken . | . . . Unknown Exits Taken 2 | 1 1 . Scrap Searched 1 | . . 1 Spaces Dug . | . . . Terrain Destroyed 30 | . 30 . Melee . | . . . Projectile . | . . . AOE 30 | . 30 . Terrain Rammed . | . . . Walls Destroyed . | . . . Machines Disabled . | . . . Actions | -11 -10 -10 --------- Run | Scr Mat Min Total 568 | 61 406 101 Wait 38 | 1 37 . Move 434 | 41 325 68 Hop . | . . . Pick Up 12 | 4 7 1 Fast Attach 8 | 6 1 1 Attach 3 | . 2 1 Detach . | . . . Swap 7 | 1 3 3 Drop 5 | . 4 1 Fire 55 | 8 27 20 Melee 6 | . . 6 Ram . | . . . Kick . | . . . Crush . | . . . Escape Stasis . | . . . Rewire . | . . . Trap . | . . . Miscellaneous . | . . . Route ------- -11/Scrapyard -10/Materials (discovered 3 exits: [*Mat x2] / *Min) -10/Mines History --------- Turn | Location | Event 21 | -11/Scrapyard | Discovered new exit (range 16) 77 | -11/Scrapyard | Entered Materials 318 | -10/Materials | Build established: Mutant 393 | -10/Materials | Core integrity fell below 50% 397 | -10/Materials | Discovered new exit (range 9) 449 | -10/Materials | Discovered new exit (range 16) 459 | -10/Materials | Discovered new exit (range 16) 493 | -10/Materials | Entered Mines 560 | -10/Mines | Core integrity fell below 20% 621 | -10/Mines | Met a Derelict who couldn't figure out how to use a Trap Extractor 622 | -10/Mines | Destroyed by EMP Trap Last Messages --------------- 00582_ G-34 Mercenary destroyed. 00585_ Acquired 49 matter. 00588_ Acquired Heat Sink. 00590_ Acquired Ion Engine. 00592_ Acquired 10 matter. 00613_ Searching scrap... 00613_ Found Sml. Matter Pod. 00613_ Found 43 Matter. 00613_ Found 21 Matter. 00620_ Connecting with SHOP.Sys... 00620_ Current location identified: Mines >>Open Door Sealed Doors opened. 00621_ IC-T2I(g): "So I found this thing but I have no idea how to use it. And who the hell trapped this place to begin with?!" 00621_ IC-T2I(g): "I give up! Here you try, I'm outta here before something nasty happens..." 00621_ Tosses Imp. Trap Extractor to the ground. 00622_ Triggered EMP Trap. 00622_ A bubble of electromagnetic force engulfs the area. Map ----- +----------------------------------------------------+ | ?????????????????????????????????????????????????? | | ?????????????????????????????????????????????????? | | ?????????????????????????????????????????????????? | | ?????????????????????????????????????????????????? | | ?????????????????????????????????????????????????? | | ?????????????????????????????????????????????????? | | ?????????????????????????????????????????????????? | | ?????????????????????????????????????????????????? | | ?????????????????????????????????????????????????? | | ???????????????????????????#?????????????????????? | | ??????????????????????????? ?????????????????????? | | ?????????????????????????? ?????????????????????? | | ?????????????????????????? ?????????????????????? | | ?????????????????????????? ?????????????????????? | | ????????????????????????? #????????????????????? | | ?????????????????????????? ####????????????????? | | ?????????????????????????? ##???????????????? | | ??????????????????????????? ##??????????????? | | ??????????????????????????? ##?????????????? | | ???????????????????????????# ##????????????? | | ??????????????????????###??# ##???????????? | | ??????????????????????#"!### #???????????? | | ??????????????????????#"[ !# #??? #? #???? | | ??????????????????????#"[! g #??? # #???? | | ??????????????????????#"/^ #????? ??? | | ??????????????????????#"!@!#X ##???? ???? | | ???????????####???????#"[### ##### #??????? | | ??????????## ##??????###??## #??????? | | ??????????# ###??????????## #??????? | | ??????????# ##??????????#### ### ##????? | | ??????????## #?????????????# ### #????? | | ???????????# ## ##????????????#% #???? | | ???????????# ### ##############%#### ? | | ??########## #?# !#??????????????? | | ??# %=% #?# ###############??????????????? | | ??# ##########?# #????????????????????????????? | | ??# #??????????## ##????????????????????????????? | | ??# #???????????####?????????????????????????????? | | ??# #????????????????????????????????????????????? | | ??# #????????????????????????????????????????????? | | ??# #????????????????????????????????????????????? | | ### #????????????????????????????????????????????? | | #????????????????????????????????????????????? | | ### ####?????????????????????????????????????????? | | ?# #?????????????????????????????????????????? | | ?# = #?????????????????????????????????????????? | | ?#= ! #?????????????????????????????????????????? | | ?# #?????????????????????????????????????????? | | ?# #?????????????????????????????????????????? | | ?# #?????????????????????????????????????????? | +----------------------------------------------------+ Best States ------------- Heat Dissipation 25 Energy Generation 10 Energy Capacity 250 Matter Stores 300 Matter Capacity 300 Sight Range 16 Terrain Scan Density 10 Propulsion Shielding 33 Evasion (%) 44 Item Schematics ----------------- None Robot Schematics ------------------ None Fabricated ------------ Nothing Alien Tech Used ----------------- None Achievements -------------- None Challenges ------------ None Game ------ Seed TransportReflectiveMembrane Manual? 0 Play Time 00:14:26 Cumulative 186.7 hours Start 2022.03.24 @ 15:59:50 End 2022.03.24 @ 16:16:20 Sessions 1 Manual Loads 0 Difficulty Rogue Special Mode None Game No. 95 Rogue 95 Adventurer 0 Explorer 0 Win Type - Total 5 Types 4/0/1/0/0/0/0/0/0 Lore% 65 Gallery% 71 Achievement% 59 Wizard Run 0 Options --------- ASCII 0 Keyboard 1 Movement Numpad Keybinds 0 Fullscreen 2 Font 18/SmallcapsGlow Map View 76x50 Tactical HUD 1 Map Filters NONE Filters NONE Steam 1 RUN: af8b3f6d-bcc4-4c6f-99c1-50dc670f9e34